fUSD/lending_fUSD_20250503
["ID","MTS","AMOUNT","RATE_DAILY","PERIOD"]
[359674074,1746241002682,-158.36508478,0.00019531,2]
[359674075,1746241005137,-291.4810557,0.00019531,2]
[359674076,1746241009517,-446.39550498,0.00019531,2]
[359674077,1746241014254,-250.9395692,0.00019531,2]
[359674078,1746241019745,175.58625171,0.00019485,2]
[359674079,1746241021598,-326.289,0.00019531,2]
[359674080,1746241025375,-260.12569534,0.00019531,2]
[359674081,1746241029560,-262.84441073,0.00019531,2]
[359674082,1746241032118,-409.86625006,0.00019531,2]
[359674083,1746241037376,-153.0641577,0.00019531,2]
[359674084,1746241041605,-229.92832171,0.00019531,2]
[359674085,1746241044944,-89.80045303,0.00019531,2]
[359674086,1746241044969,-207.4,0.00019573,2]
[359674087,1746241044992,-73.34954697,0.00019575,2]
[359674088,1746241053392,-200.0,0.00019575,2]
[359674089,1746241057810,-167.20766283,0.00019575,2]
[359674090,1746241062435,-44.91528967,0.00019575,2]
[359674091,1746241062460,-144.65959176,0.00019576,2]
[359674092,1746241064713,490.15,0.00016938,2]
[359674093,1746241064857,490.15,0.00019202,2]
[359674094,1746241067588,-155.34040824,0.00019576,2]
[359674095,1746241067613,-230.89189615,0.00019577,2]
[359674096,1746241073482,-256.61711393,0.00019577,2]
[359674097,1746241077234,-320.55,0.00019577,2]
[359674098,1746241080717,-295.72,0.00019577,2]
[359674099,1746241085705,-172.46272641,0.00019577,2]
[359674100,1746241089408,-154.28,0.00019577,2]
[359674101,1746241090479,450.0,0.00019485,2]
[359674102,1746241095041,-458.85809824,0.00019577,2]
[359674103,1746241099962,-157.05497622,0.00019577,2]
[359674104,1746241105207,-277.0,0.00019577,2]
[359674105,1746241112455,-327.86212638,0.00019577,2]
[359674106,1746241112481,-531.03717717,0.00019577,2]
[359674107,1746241129690,-310.72,0.00019577,2]
[359674108,1746241134016,-462.72,0.00019577,2]
[359674109,1746241135524,-152.0,0.00019577,2]
[359674110,1746241142655,-291.27216806,0.00019577,2]
[359674111,1746241146536,-193.3926333,0.00019577,2]
[359674112,1746241150317,-156.34813292,0.00019577,2]
[359674113,1746241179848,36251.7361,0.00019485,2]
[359674115,1746241299412,250.0,0.00018851,7]
[359674116,1746241335347,1500.0,0.00019178,2]
[359674117,1746241341054,4378.87132108,0.00019484,2]
[359674118,1746241354509,200.0,0.00018851,2]
[359674119,1746241366981,3902.97816135,0.00019484,2]
[359674120,1746241450770,250.0,0.00017,2]
[359674121,1746241451850,300.0,0.00019,2]
[359674122,1746241501844,1000.0,0.00018785,2]
[359674123,1746241527451,620.03,0.00018766,2]
[359674124,1746241548745,215.44384708,0.00018672,20]
[359674125,1746241575795,1168.42,0.00018776,2]
[359674127,1746241743184,1302.77,0.00018786,2]
[359674128,1746241753347,3512.68034517,0.00019484,2]
[359674129,1746241831828,-300.0,0.00019528,2]
[359674130,1746241831838,-1200.0,0.00019528,2]
[359674131,1746241831848,-113.14501938,0.00019528,2]
[359674132,1746241831860,-186.85498062,0.00019528,2]
[359674133,1746241831870,-1918.29952327,0.00019529,2]
[359674134,1746241831882,-2190.57097038,0.00019529,2]
[359674135,1746241831983,-826.85194318,0.00019529,2]
[359674136,1746241832040,-2048.9194833,0.00019529,2]
[359674169,1746241837804,-6129.88,0.00019529,2]
[359674170,1746241837856,-1600.94212731,0.00019529,2]
[359674171,1746241837911,-868.03,0.00019529,2]
[359674172,1746241837923,-754.94554677,0.00019529,2]
[359674173,1746241838016,-10717.1967173,0.00019529,2]
[359674174,1746241838070,-29108.63892654,0.00019529,2]
[359674175,1746241838079,-200.0,0.0001953,2]
[359674176,1746241838089,-3512.68034517,0.0001953,2]
[359674177,1746241838099,-219.49622307,0.00019571,2]
[359674178,1746241838109,-207.4,0.00019572,2]
[359674179,1746241838119,-151.0,0.00019572,2]
[359674180,1746241838128,-668.65185757,0.00019572,2]
[359674181,1746241838137,-151.0,0.00019572,2]
[359674182,1746241838147,-3512.68034517,0.00019576,2]
[359674183,1746241838157,-151.0,0.0001958,2]
[359674184,1746241838167,-644.08240969,0.0001958,2]
[359674185,1746241838177,-644.08240969,0.0001958,2]
[359674186,1746241838187,-644.08240969,0.0001958,2]
[359674187,1746241838197,-644.08240969,0.0001958,2]
[359674188,1746241838207,-644.08240969,0.0001958,2]
[359674189,1746241838216,-644.08240969,0.0001958,2]
[359674190,1746241838226,-644.08240969,0.0001958,2]
[359674191,1746241838235,-644.08240969,0.0001958,2]
[359674192,1746241838245,-644.08240969,0.0001958,2]
[359674193,1746241838255,-644.08240969,0.0001958,2]
[359674194,1746241838264,-644.08240969,0.0001958,2]
[359674195,1746241838275,-644.08240969,0.0001958,2]
[359674197,1746241838285,-644.08240969,0.0001958,2]
[359674198,1746241838295,-644.08240969,0.0001958,2]
[359674199,1746241838304,-644.08240969,0.0001958,2]
[359674200,1746241838314,-644.08240969,0.0001958,2]
[359674201,1746241838323,-644.08240969,0.0001958,2]
[359674202,1746241838332,-644.08240969,0.0001958,2]
[359674203,1746241838342,-644.08240969,0.0001958,2]
[359674204,1746241838351,-644.08240969,0.0001958,2]
[359674205,1746241838361,-644.08240969,0.0001958,2]
[359674206,1746241838371,-644.08240969,0.0001958,2]
[359674207,1746241838381,-644.08240969,0.0001958,2]
[359674208,1746241838391,-644.08240969,0.0001958,2]
[359674209,1746241838401,-644.08240969,0.0001958,2]
[359674210,1746241838411,-644.08240969,0.0001958,2]
[359674211,1746241838420,-644.08240969,0.0001958,2]
[359674212,1746241838429,-644.08240969,0.0001958,2]
[359674213,1746241838439,-644.08240969,0.0001958,2]
[359674214,1746241838448,-644.08240969,0.0001958,2]
[359674215,1746241838458,-644.08240969,0.0001958,2]
[359674216,1746241838467,-644.08240969,0.0001958,2]
[359674217,1746241838477,-644.08240969,0.0001958,2]
[359674218,1746241838486,-644.08240969,0.0001958,2]
[359674219,1746241838496,-644.08240969,0.0001958,2]
[359674220,1746241838505,-644.08240969,0.0001958,2]
[359674221,1746241838515,-644.08240969,0.0001958,2]
[359674222,1746241838525,-644.08240969,0.0001958,2]
[359674223,1746241838534,-644.08240969,0.0001958,2]
[359674224,1746241838544,-644.08240969,0.0001958,2]
[359674225,1746241838554,-644.08240969,0.0001958,2]
[359674226,1746241838563,-644.08240969,0.0001958,2]
[359674227,1746241838572,-644.08240969,0.0001958,2]
[359674228,1746241838582,-644.08240969,0.0001958,2]
[359674229,1746241838591,-644.08240969,0.0001958,2]
[359674230,1746241838600,-644.08240969,0.0001958,2]
[359674231,1746241838610,-644.08240969,0.0001958,2]
[359674232,1746241838619,-644.08240969,0.0001958,2]
[359674233,1746241838628,-644.08240969,0.0001958,2]
[359674234,1746241838638,-644.08240969,0.0001958,2]
[359674235,1746241838647,-644.08240969,0.0001958,2]
[359674236,1746241838659,-644.08240969,0.0001958,2]
[359674237,1746241838669,-644.08240969,0.0001958,2]
[359674238,1746241838679,-644.08240969,0.0001958,2]
[359674239,1746241838689,-644.08240969,0.0001958,2]
[359674240,1746241838700,-644.08240969,0.0001958,2]
[359674241,1746241838709,-644.08240969,0.0001958,2]
[359674242,1746241838718,-644.08240969,0.0001958,2]
[359674243,1746241838730,-644.08240969,0.0001958,2]
[359674244,1746241838741,-4194.73307545,0.0001958,2]
[359674245,1746241838752,-4194.73307545,0.0001958,2]
[359674246,1746241838762,-4194.73307545,0.0001958,2]
[359674247,1746241838771,-4194.73307545,0.0001958,2]
[359674248,1746241838781,-4194.73307545,0.0001958,2]
[359674249,1746241838791,-4194.73307545,0.0001958,2]
[359674250,1746241838802,-4194.73307545,0.0001958,2]
[359674251,1746241838813,-4194.73307545,0.0001958,2]
[359674252,1746241838824,-4194.73307545,0.0001958,2]
[359674253,1746241838833,-4194.73307545,0.0001958,2]
[359674254,1746241838845,-4194.73307545,0.0001958,2]
[359674255,1746241838855,-4194.73307545,0.0001958,2]
[359674256,1746241838866,-4194.73307545,0.0001958,2]
[359674257,1746241838876,-4194.73307545,0.0001958,2]
[359674258,1746241838885,-4194.73307545,0.0001958,2]
[359674259,1746241838895,-4194.73307545,0.0001958,2]
[359674260,1746241838905,-4194.73307545,0.0001958,2]
[359674261,1746241838916,-4194.73307545,0.0001958,2]
[359674262,1746241838926,-4194.73307545,0.0001958,2]
[359674263,1746241838936,-4194.73307545,0.0001958,2]
[359674264,1746241838945,-4194.73307545,0.0001958,2]
[359674265,1746241838954,-4194.73307545,0.0001958,2]
[359674266,1746241838963,-4194.73307545,0.0001958,2]
[359674267,1746241838974,-4194.73307545,0.0001958,2]
[359674268,1746241838983,-4194.73307545,0.0001958,2]
[359674269,1746241838992,-4194.73307545,0.0001958,2]
[359674270,1746241839002,-4194.73307545,0.0001958,2]
[359674271,1746241839013,-4194.73307545,0.0001958,2]
[359674272,1746241839022,-4194.73307545,0.0001958,2]
[359674273,1746241839032,-4194.7330754,0.0001958,2]
[359674274,1746241839042,-337.50505337,0.00019581,2]
[359674275,1746241839054,-500.0,0.00019583,2]
[359674276,1746241839065,-500.0,0.00019583,2]
[359674277,1746241839076,-500.0,0.00019583,2]
[359674278,1746241839085,-500.0,0.00019583,2]
[359674279,1746241839096,-500.0,0.00019583,2]
[359674280,1746241839107,-524.45982228,0.00019583,2]
[359674281,1746241839118,-500.0,0.00019583,2]
[359674282,1746241839128,-500.0,0.00019583,2]
[359674283,1746241839139,-500.0,0.00019583,2]
[359674284,1746241839149,-846.333231,0.00019583,2]
[359674285,1746241839159,-617.722084,0.00019583,2]
[359674286,1746241839169,-311.31525845,0.00019583,2]
[359674287,1746241839179,-450.0,0.00019583,2]
[359674288,1746241839188,-556.46148673,0.00019583,2]
[359674289,1746241839197,-6072.74,0.00019583,2]
[359674290,1746241839207,-450.0,0.00019583,2]
[359674291,1746241839216,-664.35,0.00019583,2]
[359674292,1746241839225,-450.0,0.00019583,2]
[359674293,1746241839234,-578.65493332,0.00019583,2]
[359674294,1746241839244,-450.0,0.00019583,2]
[359674295,1746241839254,-450.0,0.00019583,2]
[359674296,1746241839263,-450.0,0.00019583,2]
[359674297,1746241839272,-450.0,0.00019583,2]
[359674298,1746241839282,-323.24746342,0.00019583,2]
[359674299,1746241839291,-450.0,0.00019583,2]
[359674300,1746241839300,-450.0,0.00019583,2]
[359674301,1746241839310,-450.0,0.00019583,2]
[359674302,1746241839319,-450.0,0.00019583,2]
[359674303,1746241839328,-500.0,0.00019583,2]
[359674304,1746241839337,-450.0,0.00019583,2]
[359674305,1746241839347,-450.0,0.00019583,2]
[359674306,1746241839356,-450.0,0.00019583,2]
[359674307,1746241839365,-450.0,0.00019583,2]
[359674308,1746241839374,-450.0,0.00019583,2]
[359674309,1746241839384,-450.0,0.00019583,2]
[359674310,1746241839393,-498.37,0.00019583,2]
[359674311,1746241839402,-520.36,0.00019583,2]
[359674312,1746241839412,-450.0,0.00019583,2]
[359674313,1746241839421,-1260.03,0.00019583,2]
[359674314,1746241839431,-1188.98,0.00019583,2]
[359674315,1746241839440,-450.0,0.00019583,2]
[359674316,1746241839451,-450.0,0.00019583,2]
[359674317,1746241839461,-450.0,0.00019583,2]
[359674318,1746241839470,-4743.21,0.00019583,2]
[359674319,1746241839480,-450.0,0.00019583,2]
[359674320,1746241839489,-450.0,0.00019583,2]
[359674321,1746241839499,-518.48,0.00019583,2]
[359674322,1746241839510,-450.0,0.00019583,2]
[359674323,1746241839519,-1073.35,0.00019583,2]
[359674324,1746241839529,-519.34,0.00019583,2]
[359674325,1746241839541,-548.27,0.00019583,2]
[359674326,1746241839550,-1063.81,0.00019583,2]
[359674327,1746241839560,-450.0,0.00019583,2]
[359674328,1746241839570,-450.0,0.00019583,2]
[359674329,1746241839579,-450.0,0.00019583,2]
[359674330,1746241839588,-450.0,0.00019583,2]
[359674331,1746241839598,-1628.25,0.00019583,2]
[359674332,1746241839607,-518.69,0.00019583,2]
[359674333,1746241839616,-450.0,0.00019583,2]
[359674334,1746241839626,-450.0,0.00019583,2]
[359674335,1746241839635,-707.21,0.00019583,2]
[359674336,1746241839644,-473.93953283,0.00019583,2]
[359674337,1746241839654,-467.05031862,0.00019583,2]
[359674338,1746241839666,-450.0,0.00019583,2]
[359674339,1746241839675,-450.0,0.00019583,2]
[359674340,1746241839684,-450.0,0.00019583,2]
[359674341,1746241839694,-452.09724191,0.00019583,2]
[359674342,1746241839705,-450.0,0.00019583,2]
[359674343,1746241839714,-450.0,0.00019583,2]
[359674344,1746241839723,-450.0,0.00019584,2]
[359674345,1746241839735,-450.0,0.00019584,2]
[359674346,1746241839747,-182555.10953925,0.00019584,2]
[359674347,1746241839763,-10030.98720358,0.00019584,2]
[359674348,1746241839990,-57413.90325717,0.00019584,2]
[359674349,1746241840000,-315.14875139,0.00019584,2]
[359674350,1746241840009,-450.0,0.00019584,2]
[359674351,1746241840019,-450.0,0.00019584,2]
[359674352,1746241840028,-552.0,0.00019584,2]
[359674353,1746241840038,-450.0,0.00019584,2]
[359674354,1746241840047,-450.0,0.00019584,2]
[359674355,1746241840056,-450.0,0.00019584,2]
[359674356,1746241840066,-450.0,0.00019584,2]
[359674357,1746241840075,-450.0,0.00019584,2]
[359674358,1746241840084,-496.36670578,0.00019584,2]
[359674359,1746241840094,-450.0,0.00019584,2]
[359674360,1746241840103,-450.0,0.00019584,2]
[359674361,1746241840113,-450.0,0.00019584,2]
[359674362,1746241840123,-450.0,0.00019584,2]
[359674363,1746241840132,-464.64758104,0.00019584,2]
[359674364,1746241840142,-450.0,0.00019584,2]
[359674365,1746241840153,-505.10414937,0.00019584,2]
[359674366,1746241840161,-450.0,0.00019584,2]
[359674367,1746241840169,-450.0,0.00019584,2]
[359674368,1746241840177,-450.0,0.00019584,2]
[359674369,1746241840186,-450.0,0.00019584,2]
[359674370,1746241840196,-450.0,0.00019584,2]
[359674371,1746241840205,-450.0,0.00019584,2]
[359674372,1746241840215,-450.0,0.00019584,2]
[359674373,1746241840225,-450.0,0.00019584,2]
[359674374,1746241840234,-450.0,0.00019584,2]
[359674375,1746241840244,-887.21,0.00019584,2]
[359674376,1746241840253,-176.29814584,0.00019584,2]
[359674377,1746241840263,-450.0,0.00019584,2]
[359674378,1746241840272,-450.0,0.00019584,2]
[359674379,1746241840282,-450.0,0.00019584,2]
[359674380,1746241840292,-450.0,0.00019584,2]
[359674381,1746241840302,-681.37,0.00019584,2]
[359674382,1746241840311,-450.0,0.00019584,2]
[359674383,1746241840320,-450.0,0.00019584,2]
[359674384,1746241840330,-467.58,0.00019584,2]
[359674385,1746241840340,-450.0,0.00019584,2]
[359674386,1746241840351,-450.0,0.00019584,2]
[359674387,1746241840361,-450.0,0.00019584,2]
[359674388,1746241840371,-450.0,0.00019584,2]
[359674389,1746241840381,-450.0,0.00019584,2]
[359674390,1746241840390,-450.0,0.00019584,2]
[359674391,1746241840399,-450.0,0.00019584,2]
[359674392,1746241840409,-450.0,0.00019584,2]
[359674393,1746241840418,-450.0,0.00019584,2]
[359674394,1746241840428,-450.0,0.00019584,2]
[359674395,1746241840437,-450.0,0.00019584,2]
[359674396,1746241840447,-450.0,0.00019584,2]
[359674397,1746241840456,-450.0,0.00019584,2]
[359674398,1746241840465,-450.0,0.00019584,2]
[359674399,1746241840475,-450.0,0.00019584,2]
[359674400,1746241840484,-450.0,0.00019584,2]
[359674401,1746241840494,-450.0,0.00019584,2]
[359674402,1746241840503,-450.0,0.00019584,2]
[359674403,1746241840512,-450.0,0.00019584,2]
[359674404,1746241840522,-450.0,0.00019584,2]
[359674405,1746241840531,-450.0,0.00019584,2]
[359674406,1746241840540,-450.0,0.00019584,2]
[359674407,1746241840550,-450.0,0.00019584,2]
[359674408,1746241840559,-450.0,0.00019584,2]
[359674409,1746241840569,-450.0,0.00019584,2]
[359674410,1746241840579,-450.0,0.00019584,2]
[359674411,1746241840589,-450.0,0.00019584,2]
[359674412,1746241840600,-450.0,0.00019584,2]
[359674413,1746241840610,-450.0,0.00019584,2]
[359674414,1746241840619,-450.0,0.00019584,2]
[359674415,1746241840628,-450.0,0.00019584,2]
[359674416,1746241840638,-450.0,0.00019584,2]
[359674417,1746241840647,-450.0,0.00019584,2]
[359674418,1746241840658,-519.08874398,0.00019584,2]
[359674419,1746241840667,-450.0,0.00019584,2]
[359674420,1746241840676,-441.90774528,0.00019584,2]
[359674421,1746241840686,-450.0,0.00019584,2]
[359674422,1746241840695,-503.91,0.00019584,2]
[359674423,1746241840706,-450.0,0.00019584,2]
[359674424,1746241840715,-450.0,0.00019584,2]
[359674425,1746241840724,-450.0,0.00019584,2]
[359674426,1746241840735,-450.0,0.00019584,2]
[359674427,1746241840744,-808.89,0.00019584,2]
[359674428,1746241840752,-497.12,0.00019584,2]
[359674429,1746241840761,-977.07,0.00019584,2]
[359674430,1746241840770,-312.69658061,0.00019584,2]
[359674431,1746241840779,-450.0,0.00019584,2]
[359674432,1746241840788,-450.0,0.00019584,2]
[359674433,1746241840797,-482.24,0.00019584,2]
[359674434,1746241840806,-450.0,0.00019584,2]
[359674435,1746241840815,-450.0,0.00019584,2]
[359674436,1746241840824,-450.0,0.00019584,2]
[359674437,1746241840833,-450.0,0.00019584,2]
[359674438,1746241840843,-450.0,0.00019584,2]
[359674439,1746241840852,-468.06,0.00019584,2]
[359674440,1746241840861,-465.94904646,0.00019584,2]
[359674441,1746241840871,-5443.07,0.00019584,2]
[359674442,1746241840880,-4710.05,0.00019584,2]
[359674443,1746241840890,-450.0,0.00019584,2]
[359674444,1746241840900,-450.0,0.00019584,2]
[359674445,1746241840909,-450.0,0.00019584,2]
[359674446,1746241840920,-450.0,0.00019584,2]
[359674447,1746241840931,-4283.39,0.00019584,2]
[359674448,1746241840941,-450.0,0.00019584,2]
[359674449,1746241840950,-941.49,0.00019584,2]
[359674450,1746241840959,-450.0,0.00019584,2]
[359674451,1746241840968,-450.0,0.00019584,2]
[359674452,1746241840979,-450.0,0.00019584,2]
[359674453,1746241840988,-612.19,0.00019584,2]
[359674454,1746241840998,-450.0,0.00019584,2]
[359674455,1746241841007,-450.0,0.00019584,2]
[359674456,1746241841017,-450.0,0.00019584,2]
[359674457,1746241841027,-450.0,0.00019584,2]
[359674458,1746241841037,-450.0,0.00019584,2]
[359674459,1746241841047,-450.0,0.00019584,2]
[359674460,1746241841056,-450.0,0.00019584,2]
[359674461,1746241841065,-450.0,0.00019584,2]
[359674462,1746241841074,-450.0,0.00019584,2]
[359674463,1746241841085,-465.22,0.00019584,2]
[359674464,1746241841095,-4689.06,0.00019584,2]
[359674465,1746241841105,-450.0,0.00019584,2]
[359674466,1746241841116,-558.66,0.00019584,2]
[359674467,1746241841126,-598.05,0.00019584,2]
[359674468,1746241841137,-450.0,0.00019584,2]
[359674469,1746241841147,-450.0,0.00019584,2]
[359674470,1746241841156,-85177.16,0.00019584,2]
[359674471,1746241841165,-450.0,0.00019584,2]
[359674472,1746241841175,-450.0,0.00019584,2]
[359674473,1746241841184,-677.78,0.00019584,2]
[359674474,1746241841194,-203.12657609,0.00019584,2]
[359674475,1746241841203,-450.0,0.00019584,2]
[359674476,1746241841216,-573.59694529,0.00019584,2]
[359674477,1746241841226,-5041.18,0.00019584,2]
[359674478,1746241841236,-450.0,0.00019584,2]
[359674479,1746241841246,-450.0,0.00019584,2]
[359674480,1746241841255,-450.0,0.00019584,2]
[359674481,1746241841265,-2191.12,0.00019584,2]
[359674482,1746241841274,-27671.24,0.00019584,2]
[359674483,1746241841283,-450.0,0.00019584,2]
[359674484,1746241841293,-450.0,0.00019584,2]
[359674485,1746241841302,-115872.16,0.00019584,2]
[359674486,1746241841313,-450.0,0.00019584,2]
[359674487,1746241841322,-450.0,0.00019584,2]
[359674488,1746241841331,-1820.53,0.00019584,2]
[359674489,1746241841340,-450.0,0.00019584,2]
[359674490,1746241841350,-450.0,0.00019584,2]
[359674491,1746241841360,-450.0,0.00019584,2]
[359674492,1746241841369,-15516.38,0.00019584,2]
[359674493,1746241841379,-166.88735199,0.00019584,2]
[359674494,1746241841388,-1395.96,0.00019584,2]
[359674495,1746241841398,-465.11,0.00019584,2]
[359674496,1746241841407,-450.0,0.00019584,2]
[359674497,1746241841417,-450.0,0.00019584,2]
[359674498,1746241841426,-450.0,0.00019584,2]
[359674499,1746241841435,-1799.07,0.00019584,2]
[359674500,1746241841445,-450.0,0.00019584,2]
[359674501,1746241841454,-450.0,0.00019584,2]
[359674502,1746241841464,-667.6,0.00019584,2]
[359674503,1746241841473,-450.0,0.00019584,2]
[359674504,1746241841483,-450.0,0.00019584,2]
[359674505,1746241841493,-450.0,0.00019584,2]
[359674506,1746241841502,-450.0,0.00019584,2]
[359674507,1746241841511,-450.0,0.00019584,2]
[359674508,1746241841520,-450.0,0.00019584,2]
[359674509,1746241841530,-450.0,0.00019584,2]
[359674510,1746241841540,-525.84,0.00019584,2]
[359674511,1746241841550,-450.0,0.00019584,2]
[359674512,1746241841560,-450.0,0.00019584,2]
[359674513,1746241841570,-3257.3,0.00019584,2]
[359674514,1746241841580,-450.0,0.00019584,2]
[359674515,1746241841589,-450.0,0.00019584,2]
[359674516,1746241841599,-1521.3,0.00019584,2]
[359674517,1746241841608,-849.23,0.00019584,2]
[359674518,1746241841618,-535.98,0.00019584,2]
[359674519,1746241841627,-450.0,0.00019584,2]
[359674520,1746241841637,-524.8,0.00019584,2]
[359674521,1746241841647,-450.0,0.00019584,2]
[359674522,1746241841660,-2975.0,0.00019584,2]
[359674523,1746241841669,-588.25,0.00019584,2]
[359674524,1746241841680,-450.0,0.00019584,2]
[359674525,1746241841689,-481.37865192,0.00019584,2]
[359674526,1746241841700,-457.5,0.00019584,2]
[359674527,1746241841710,-450.0,0.00019584,2]
[359674528,1746241841719,-450.0,0.00019584,2]
[359674529,1746241841729,-601.02,0.00019584,2]
[359674530,1746241841739,-450.0,0.00019584,2]
[359674531,1746241841750,-450.0,0.00019584,2]
[359674532,1746241841760,-568.95,0.00019584,2]
[359674533,1746241841769,-450.0,0.00019584,2]
[359674534,1746241841778,-560.08,0.00019584,2]
[359674535,1746241841787,-450.0,0.00019584,2]
[359674536,1746241841796,-270.42016562,0.00019584,2]
[359674537,1746241841806,-827.05,0.00019584,2]
[359674538,1746241841815,-450.0,0.00019584,2]
[359674539,1746241841824,-291.31094517,0.00019584,2]
[359674540,1746241841834,-450.0,0.00019584,2]
[359674541,1746241841844,-450.0,0.00019584,2]
[359674542,1746241841854,-835.69,0.00019584,2]
[359674543,1746241841863,-469.63133459,0.00019584,2]
[359674544,1746241841873,-529.78928757,0.00019584,2]
[359674545,1746241841883,-450.0,0.00019584,2]
[359674546,1746241841892,-450.0,0.00019584,2]
[359674547,1746241841902,-620.66,0.00019584,2]
[359674548,1746241841912,-788.81,0.00019584,2]
[359674549,1746241841922,-457.06505476,0.00019584,2]
[359674550,1746241841931,-450.0,0.00019584,2]
[359674551,1746241841941,-450.0,0.00019584,2]
[359674552,1746241841951,-3995.65,0.00019584,2]
[359674553,1746241842147,-452.00734145,0.00019585,2]
[359674554,1746241842159,-450.0,0.00019585,2]
[359674555,1746241842169,-450.0,0.00019585,2]
[359674556,1746241842179,-450.0,0.00019585,2]
[359674557,1746241842189,-450.0,0.00019585,2]
[359674558,1746241842198,-450.0,0.00019585,2]
[359674559,1746241842208,-450.0,0.00019585,2]
[359674560,1746241842218,-450.0,0.00019585,2]
[359674561,1746241842228,-450.0,0.00019585,2]
[359674562,1746241842237,-450.0,0.00019585,2]
[359674563,1746241842246,-450.0,0.00019585,2]
[359674564,1746241842257,-450.0,0.00019585,2]
[359674565,1746241842266,-742.76,0.00019585,2]
[359674566,1746241842276,-469.51628982,0.00019585,2]
[359674567,1746241842285,-505.07,0.00019585,2]
[359674568,1746241842295,-450.0,0.00019585,2]
[359674569,1746241842304,-450.0,0.00019585,2]
[359674570,1746241842314,-450.0,0.00019585,2]
[359674571,1746241842323,-960.94,0.00019585,2]
[359674572,1746241842333,-450.0,0.00019585,2]
[359674573,1746241842343,-450.0,0.00019585,2]
[359674574,1746241842352,-258.20845104,0.00019585,2]
[359674575,1746241842362,-450.0,0.00019585,2]
[359674576,1746241842371,-300.0,0.00019585,2]
[359674577,1746241842381,-450.0,0.00019585,2]
[359674578,1746241842390,-450.0,0.00019585,2]
[359674579,1746241842399,-585.27,0.00019585,2]
[359674580,1746241842408,-762.65,0.00019585,2]
[359674581,1746241842418,-450.0,0.00019585,2]
[359674582,1746241842427,-450.0,0.00019585,2]
[359674583,1746241842436,-450.0,0.00019585,2]
[359674584,1746241842445,-450.0,0.00019585,2]
[359674585,1746241842454,-450.0,0.00019585,2]
[359674586,1746241842463,-460.4631633,0.00019585,2]
[359674587,1746241842474,-479.33,0.00019585,2]
[359674588,1746241842485,-450.0,0.00019585,2]
[359674589,1746241842495,-450.0,0.00019585,2]
[359674590,1746241842505,-450.0,0.00019585,2]
[359674591,1746241842515,-461.16882008,0.00019585,2]
[359674592,1746241842524,-455.06729876,0.00019585,2]
[359674593,1746241842533,-450.0,0.00019585,2]
[359674594,1746241842543,-450.0,0.00019585,2]
[359674595,1746241842553,-2542.85,0.00019585,2]
[359674596,1746241842562,-450.0,0.00019585,2]
[359674597,1746241842572,-450.0,0.00019585,2]
[359674598,1746241842583,-450.0,0.00019585,2]
[359674599,1746241842593,-450.0,0.00019585,2]
[359674600,1746241842603,-450.0,0.00019585,2]
[359674601,1746241842613,-450.0,0.00019585,2]
[359674602,1746241842622,-999.33,0.00019585,2]
[359674603,1746241842632,-450.0,0.00019585,2]
[359674605,1746241842642,-450.0,0.00019585,2]
[359674607,1746241842652,-450.0,0.00019585,2]
[359674609,1746241842665,-450.0,0.00019585,2]
[359674611,1746241842675,-450.0,0.00019585,2]
[359674613,1746241842684,-450.0,0.00019585,2]